fUSD/lending_fUSD_20240216
["ID","MTS","AMOUNT","RATE_DAILY","PERIOD"]
[314223868,1708096248809,-299.5,0.000425,4]
[314223870,1708096248818,-299.5,0.000425,4]
[314223872,1708096248827,-299.5,0.000425,4]
[314223874,1708096248837,-299.5,0.000425,4]
[314223876,1708096248846,-299.5,0.000425,4]
[314223878,1708096248856,-299.5,0.000425,4]
[314223880,1708096248865,-299.5,0.000425,4]
[314223882,1708096248874,-299.5,0.000425,4]
[314223884,1708096248884,-299.5,0.000425,4]
[314223886,1708096248893,-299.5,0.000425,4]
[314223888,1708096248902,-299.5,0.000425,4]
[314223890,1708096248912,-299.5,0.000425,4]
[314223892,1708096248921,-299.5,0.000425,4]
[314223894,1708096248930,-299.5,0.000425,4]
[314223896,1708096248939,-299.5,0.000425,4]
[314223898,1708096248949,-299.5,0.000425,4]
[314223900,1708096248958,-299.5,0.000425,4]
[314223902,1708096248967,-299.5,0.000425,4]
[314223905,1708096248977,-299.5,0.000425,4]
[314223907,1708096248986,-299.5,0.000425,4]
[314223909,1708096248996,-4481.38903553,0.000425,40]
[314223911,1708096249006,-5999.1952221,0.00042506,4]
[314223912,1708096249019,-11000.0,0.00042506,4]
[314223913,1708096249030,-1089.4,0.00042506,4]
[314223914,1708096249043,-486.9799995,0.00042506,4]
[314223915,1708096249067,-345.82,0.00042506,4]
[314223917,1708096249082,-259.23637675,0.00042506,4]
[314223919,1708096249091,-1668.6745167,0.00042589,5]
[314223921,1708096249101,-186.27,0.00042726,2]
[314223923,1708096249110,-7611.78813099,0.00042819,5]
[314224026,1708097242122,750.0,0.00025,3]
[314224037,1708097431988,-414.60283298,0.00026442,2]
[314224038,1708097431997,-175.55666979,0.00026443,2]
[314224039,1708097432006,-300.0,0.00026643,2]
[314224040,1708097432015,-150.0,0.00026643,2]
[314224041,1708097432025,-4808.18014014,0.00026645,2]
[314224042,1708097432035,-170.88,0.0003029,2]
[314224043,1708097432045,-150.06,0.00031991,2]
[314224044,1708097432055,-4000.0,0.000329,2]
[314224045,1708097432065,-171.22,0.00034257,2]
[314224046,1708097432074,-250.0,0.00034257,2]
[314224047,1708097432083,-2000.0,0.00034257,2]
[314224048,1708097432092,-414.49269636,0.00034999,5]
[314224049,1708097432101,-354.72,0.00035532,2]
[314224050,1708097432112,-1026.35528505,0.00036299,4]
[314224051,1708097432122,-2393.0,0.000363,3]
[314224052,1708097432132,-160.25290937,0.00036421,2]
[314224053,1708097432142,-377.82015803,0.00036522,12]
[314224054,1708097432152,-3137.37512901,0.00036532,13]
[314224055,1708097432162,-8888.50549303,0.00036542,13]
[314224056,1708097432171,-364.61,0.00036568,2]
[314224057,1708097432180,-499.99,0.00037327,2]
[314224058,1708097432190,-159.94,0.00037614,2]
[314224059,1708097432199,-500.0,0.0003782,2]
[314224060,1708097432208,-1313.45,0.00037835,2]
[314224061,1708097432218,-1000.0,0.00037835,2]
[314224062,1708097432228,-250.0,0.00037835,111]
[314224063,1708097432240,-200.0,0.00037873,2]
[314224064,1708097432249,-433.82,0.00037873,2]
[314224065,1708097432258,-396.4,0.00037882,2]
[314224066,1708097432268,-2621.08,0.00037901,2]
[314224067,1708097432278,-3561.0,0.00038237,2]
[314224068,1708097432288,-152.61,0.00038356,2]
[314224069,1708097432297,-150.0,0.00038356,2]
[314224070,1708097432307,-23900.0,0.00038381,2]
[314224071,1708097432316,-250.0,0.00038409,2]
[314224072,1708097432325,-792.66,0.00038476,15]
[314224073,1708097432335,-160.25290936,0.00038661,2]
[314224074,1708097432344,-153.76,0.00038694,2]
[314224075,1708097432353,-917.85,0.00038759,2]
[314224076,1708097432363,-199.74,0.00038796,2]
[314224077,1708097432372,-364.61,0.00038832,2]
[314224078,1708097432381,-386.07127256,0.00038839,4]
[314224079,1708097432390,-153.76,0.00038877,2]
[314224080,1708097432399,-155.01,0.00038948,2]
[314224081,1708097432409,-165.24,0.00038996,2]
[314224082,1708097432419,-153.76,0.0003906,2]
[314224083,1708097432428,-150.36398041,0.00039113,2]
[314224084,1708097432438,-500.0,0.00039118,2]
[314224085,1708097432447,-541.05,0.00039178,2]
[314224086,1708097432457,-153.76,0.00039244,2]
[314224087,1708097432466,-634.2,0.0003926,2]
[314224088,1708097432476,-2621.08,0.00039303,2]
[314224089,1708097432488,-150.0,0.00039366,2]
[314224090,1708097432497,-153.76,0.00039427,2]
[314224091,1708097432506,-396.4,0.00039526,2]
[314224092,1708097432516,-164.65,0.00039544,2]
[314224093,1708097432525,-155.0,0.00039598,2]
[314224094,1708097432534,-153.76,0.0003961,2]
[314224095,1708097432544,-500.0,0.00039666,2]
[314224096,1708097432553,-666.0,0.00039699,2]
[314224097,1708097432563,-180.320062,0.00039721,2]
[314224098,1708097432573,-214.719555,0.00039721,2]
[314224099,1708097432582,-286.567519,0.00039721,2]
[314224100,1708097432592,-162.922952,0.00039721,2]
[314224101,1708097432602,-641.694204,0.00039721,2]
[314224102,1708097432611,-162.037712,0.00039721,2]
[314224103,1708097432625,-3159.754706,0.00039721,2]
[314224104,1708097432635,-641.694203,0.00039721,2]
[314224105,1708097432645,-153.76,0.00039793,2]
[314224106,1708097432655,-537.98456549,0.00039798,4]
[314224107,1708097432664,-626.56955567,0.00039798,4]
[314224108,1708097432674,-151.91,0.000399,10]
[314224109,1708097432683,-11907.78921899,0.0003991,2]
[314224110,1708097432694,-787.61805422,0.0003991,9]
[314224111,1708097432703,-206.0,0.00039916,2]
[314224112,1708097432714,-155.0,0.00039919,4]
[314224113,1708097432725,-19166.73388974,0.00039919,4]
[314224114,1708097432737,-105201.8639,0.0003992,2]
[314224115,1708097432746,-675.97080171,0.0003992,12]
[314224116,1708097432754,-173.95812334,0.0003992,15]
[314224117,1708097432764,-2020.54635016,0.0003992,13]
[314224118,1708097432773,-787.61805415,0.00039925,9]
[314224119,1708097432782,-2020.54635008,0.00039929,13]
[314224120,1708097432792,-2020.54635008,0.00039938,13]
[314224121,1708097432801,-787.61805415,0.00039941,9]
[314224122,1708097432810,-2020.54635008,0.00039947,13]
[314224123,1708097432820,-2020.54635008,0.00039956,13]
[314224124,1708097432829,-787.61805415,0.00039956,9]
[314224125,1708097432839,-2020.54635008,0.00039965,13]
[314224126,1708097432848,-2020.54635008,0.00039973,13]
[314224127,1708097432858,-11907.78921896,0.00039975,2]
[314224128,1708097432868,-153.76,0.00039977,2]
[314224129,1708097432877,-2020.54635008,0.00039982,13]
[314224130,1708097432886,-2020.54635008,0.00039991,13]
[314224131,1708097432896,-155.0,0.00039998,2]
[314224132,1708097432905,-154.74,0.0004,2]
[314224133,1708097432915,-150.0,0.0004,2]
[314224134,1708097432925,-250.0,0.0004,2]
[314224135,1708097432934,-155.0,0.0004,6]
[314224136,1708097432944,-150.0,0.0004,2]
[314224137,1708097432954,-277.878225,0.0004,2]
[314224138,1708097432964,-800.24575574,0.0004,4]
[314224139,1708097432974,-2020.54635008,0.0004,13]
[314224140,1708097432985,-890.02085763,0.00040009,2]
[314224141,1708097432994,-2020.54635008,0.00040009,13]
[314224142,1708097433003,-50816.9267474,0.0004001,10]
[314224143,1708097433013,-5349.15018394,0.0004001,10]
[314224144,1708097433025,-169406.311582,0.0004001,6]
[314224145,1708097433035,-173.95812333,0.00040017,15]
[314224146,1708097433045,-55902.615331,0.00040018,120]
[314224147,1708097433091,-697.33973822,0.00040018,120]
[314224148,1708097433104,-17242.77483078,0.00040018,120]
[314224149,1708097433114,-174.37222919,0.00040018,8]
[314224150,1708097433124,-1282.04722797,0.00040018,2]
[314224151,1708097433134,-2953.88712434,0.00040018,32]
[314224152,1708097433143,-4522.01471883,0.00040018,2]
[314224153,1708097433153,-2954.74684113,0.00040018,2]
[314224154,1708097433162,-2020.54635008,0.00040018,13]
[314224155,1708097433171,-3505.36603384,0.00040018,2]
[314224156,1708097433181,-296101.7691,0.0004002,2]
[314224157,1708097433190,-207.1733,0.0004002,2]
[314224158,1708097433201,-3678.8608,0.0004002,2]
[314224159,1708097433211,-202.54557145,0.0004002,2]
[314224160,1708097433223,-153.53778306,0.0004002,2]
[314224161,1708097433234,-425.97195653,0.0004002,2]
[314224162,1708097433243,-19341.67,0.0004002,2]
[314224163,1708097433252,-19341.67,0.0004002,2]
[314224164,1708097433262,-19341.67,0.0004002,2]
[314224165,1708097433272,-19341.67,0.0004002,2]
[314224166,1708097433281,-19341.67,0.0004002,2]
[314224167,1708097433290,-19341.67,0.0004002,2]
[314224168,1708097433300,-19341.67,0.0004002,2]
[314224169,1708097433309,-19341.67,0.0004002,2]
[314224170,1708097433319,-19341.67,0.0004002,2]
[314224171,1708097433328,-19341.67,0.0004002,2]
[314224172,1708097433337,-19341.67,0.0004002,2]
[314224173,1708097433347,-19341.67,0.0004002,2]
[314224174,1708097433357,-19341.67,0.0004002,2]
[314224175,1708097433366,-19341.67,0.0004002,2]
[314224176,1708097433375,-19341.67,0.0004002,2]
[314224177,1708097433384,-19341.79912493,0.0004002,2]
[314224178,1708097433394,-11907.78921896,0.00040041,2]
[314224179,1708097433403,-11907.78921896,0.00040106,2]
[314224180,1708097433414,-24071.1758277,0.00040107,10]
[314224181,1708097433424,-26745.7509197,0.00040108,10]
[314224182,1708097433435,-508218.934746,0.00040108,6]
[314224185,1708097433553,-151.0,0.00040117,2]
[314224187,1708097433562,-392.11521299,0.00040117,31]
[314224189,1708097433571,-500.0,0.00040117,31]
[314224192,1708097433581,-628.05406174,0.00040117,31]
[314224194,1708097433590,-500.0,0.00040117,31]
[314224195,1708097433604,-199.55639065,0.00040117,31]
[314224197,1708097433614,-542.63943108,0.00040117,31]
[314224199,1708097433623,-500.0,0.00040117,31]
[314224200,1708097433633,-312.88046878,0.00040117,31]
[314224201,1708097433642,-500.0,0.00040117,31]
[314224202,1708097433651,-350.14253306,0.00040117,31]
[314224203,1708097433661,-500.0,0.00040117,31]
[314224204,1708097433670,-500.0,0.00040117,31]
[314224205,1708097433681,-454.7904541,0.00040117,31]
[314224206,1708097433690,-500.0,0.00040117,31]
[314224207,1708097433700,-500.0,0.00040117,31]
[314224208,1708097433709,-500.0,0.00040117,31]
[314224209,1708097433718,-556.26427697,0.00040117,31]
[314224210,1708097433727,-500.0,0.00040117,31]
[314224211,1708097433737,-500.0,0.00040117,31]
[314224212,1708097433747,-500.0,0.00040117,31]
[314224213,1708097433756,-500.0,0.00040117,31]
[314224214,1708097433766,-500.0,0.00040117,31]
[314224215,1708097433775,-500.0,0.00040117,31]
[314224216,1708097433784,-500.0,0.00040117,31]
[314224217,1708097433794,-500.0,0.00040117,31]
[314224218,1708097433804,-500.0,0.00040117,31]
[314224219,1708097433813,-500.0,0.00040117,31]
[314224220,1708097433823,-500.0,0.00040117,31]
[314224221,1708097433832,-500.0,0.00040117,31]
[314224222,1708097433841,-500.0,0.00040117,31]
[314224223,1708097433851,-500.0,0.00040117,31]
[314224224,1708097433860,-500.0,0.00040117,31]
[314224225,1708097433870,-500.0,0.00040117,31]
[314224226,1708097433879,-177.4412936,0.00040117,31]
[314224227,1708097433889,-500.0,0.00040117,31]
[314224228,1708097433898,-500.0,0.00040117,31]
[314224229,1708097433908,-500.0,0.00040117,31]
[314224230,1708097433917,-500.0,0.00040117,31]
[314224231,1708097433926,-500.0,0.00040117,31]
[314224232,1708097433936,-500.0,0.00040117,31]
[314224233,1708097433945,-500.0,0.00040117,31]
[314224234,1708097433954,-500.0,0.00040117,31]
[314224235,1708097433963,-500.0,0.00040117,31]
[314224236,1708097433973,-500.0,0.00040117,31]
[314224237,1708097433983,-500.0,0.00040117,31]
[314224238,1708097433993,-500.0,0.00040117,31]
[314224239,1708097434002,-500.0,0.00040117,31]
[314224240,1708097434012,-500.0,0.00040117,31]
[314224241,1708097434023,-500.0,0.00040117,31]
[314224242,1708097434034,-500.0,0.00040117,31]
[314224243,1708097434043,-500.0,0.00040117,31]
[314224244,1708097434053,-500.0,0.00040117,31]
[314224245,1708097434062,-500.0,0.00040117,31]
[314224246,1708097434072,-500.0,0.00040117,31]
[314224247,1708097434081,-500.0,0.00040117,31]
[314224248,1708097434091,-500.0,0.00040117,31]
[314224249,1708097434100,-500.0,0.00040117,31]
[314224250,1708097434110,-500.0,0.00040117,31]
[314224251,1708097434119,-500.0,0.00040117,31]
[314224252,1708097434130,-500.0,0.00040117,31]
[314224253,1708097434140,-500.0,0.00040117,31]
[314224254,1708097434149,-500.0,0.00040117,31]
[314224255,1708097434159,-500.0,0.00040117,31]
[314224256,1708097434168,-500.0,0.00040117,31]
[314224257,1708097434177,-500.0,0.00040117,31]
[314224258,1708097434186,-500.0,0.00040117,31]
[314224259,1708097434195,-500.0,0.00040117,31]
[314224260,1708097434205,-500.0,0.00040117,31]
[314224261,1708097434214,-500.0,0.00040117,31]
[314224262,1708097434223,-232.55975617,0.00040117,31]
[314224263,1708097434237,-500.0,0.00040117,31]
[314224264,1708097434246,-500.0,0.00040117,31]
[314224265,1708097434256,-350.0,0.00040117,31]
[314224266,1708097434265,-500.0,0.00040117,31]
[314224267,1708097434274,-500.0,0.00040117,31]
[314224268,1708097434283,-500.0,0.00040117,31]
[314224269,1708097434293,-500.0,0.00040117,31]
[314224270,1708097434302,-500.0,0.00040117,31]
[314224271,1708097434312,-500.0,0.00040117,31]
[314224272,1708097434322,-500.0,0.00040117,31]
[314224273,1708097434332,-500.0,0.00040117,31]
[314224274,1708097434341,-500.0,0.00040117,31]
[314224275,1708097434351,-150.0,0.00040117,3]
[314224276,1708097434360,-165.33055243,0.00040117,3]
[314224277,1708097434371,-165.33055243,0.00040117,3]
[314224278,1708097434381,-150.0,0.00040117,3]
[314224279,1708097434391,-165.33055243,0.00040117,3]
[314224280,1708097434402,-150.0,0.00040117,3]
[314224281,1708097434412,-150.0,0.00040117,3]
[314224282,1708097434423,-165.33055243,0.00040117,3]
[314224283,1708097434433,-150.0,0.00040117,3]
[314224284,1708097434443,-165.33055243,0.00040117,3]
[314224285,1708097434454,-150.0,0.00040117,3]
[314224286,1708097434464,-165.33055243,0.00040117,3]
[314224287,1708097434476,-150.0,0.00040117,3]
[314224288,1708097434497,-165.33055243,0.00040117,3]
[314224289,1708097434506,-150.0,0.00040117,3]
[314224290,1708097434516,-165.33055243,0.00040117,3]
[314224291,1708097434525,-150.0,0.00040117,3]
[314224292,1708097434537,-165.33055243,0.00040117,3]
[314224293,1708097434546,-150.0,0.00040117,3]
[314224294,1708097434555,-165.33055243,0.00040117,3]
[314224295,1708097434564,-552770.30609317,0.00040118,30]
[314224296,1708097434586,-1271.78432365,0.00040118,30]
[314224297,1708097434599,-1797.74999999,0.00040118,30]
[314224298,1708097434616,-23686.5,0.00040118,30]
[314224299,1708097434630,-414.49269636,0.00040118,30]
[314224300,1708097434642,-81084.48007965,0.00040118,30]
[314224301,1708097434660,-5264.93016729,0.00040118,30]
[314224302,1708097434671,-499950.00590205,0.00040118,30]
[314224303,1708097434683,-5166.69816,0.00040118,30]
[314224304,1708097434711,-43909.8079099,0.00040118,30]
[314224305,1708097434724,-2943.35908574,0.00040118,30]
[314224306,1708097434738,-2404.4741709,0.00040118,30]
[314224307,1708097434749,-2613.10872722,0.00040118,30]
[314224308,1708097434762,-361.875,0.00040118,30]
[314224309,1708097434773,-367.52434221,0.00040118,30]
[314224310,1708097434797,-3036.304,0.00040118,30]
[314224311,1708097434811,-5179.053696,0.00040118,30]
[314224312,1708097434822,-278.78,0.00040118,30]
[314224313,1708097435397,-2220.78467742,0.00040118,30]
[314224314,1708097435409,-359.46626394,0.00040118,30]
[314224315,1708097435435,-27655.7648395,0.00040118,30]
[314224316,1708097435483,-138956.012075,0.00040118,30]
[314224318,1708097439592,-759.6,0.0003991,10]
[314224319,1708097439602,-537.42092014,0.0003992,2]
[314224320,1708097439612,-537.42092009,0.0003994,2]
[314224321,1708097439623,-787.61805415,0.00039972,9]
[314224322,1708097439633,-503.5236394,0.0004,2]
[314224323,1708097439642,-4744.97160987,0.00040118,5]
[314224324,1708097439655,-15020.2160525,0.00040118,5]
[314224325,1708097439667,-13505.95248156,0.00040118,5]
[314224326,1708097439688,-1029.336,0.00040118,5]
[314224327,1708097439701,-2382.70408967,0.00040118,5]
[314224328,1708097439726,-2493.64755684,0.00040118,5]
[314224329,1708097439739,-1154.63320826,0.00040118,5]
[314224330,1708097439751,-1576.29202503,0.00040118,5]
[314224331,1708097439762,-333.88903701,0.00040118,5]
[314224332,1708097440588,-551.79220761,0.00040118,5]
[314224333,1708097440749,-648.63598387,0.00040118,5]
[314224334,1708097440761,-19197.31653934,0.00040118,5]
[314224335,1708097440838,-306.77887255,0.00040118,5]
[314224341,1708097441713,-787.61805415,0.00039987,9]
[314224342,1708097441722,-36483.1793374,0.00040118,5]
[314224357,1708097442933,-636.62623107,0.00040117,2]
[314224358,1708097442942,-9652.48063005,0.00040118,5]
[314224359,1708097442954,-48974.07283134,0.00040118,5]
[314224360,1708097442966,-507.39712895,0.00040118,5]
[314224361,1708097442977,-1775.82329512,0.00040118,5]
[314224362,1708097443059,-500.0,0.00040118,5]
[314224363,1708097443070,-1468.79524653,0.00040118,5]
[314224364,1708097443081,-962.28573574,0.00040118,5]
[314224365,1708097443299,-5968.23969999,0.00040118,5]
[314224366,1708097443311,-5180.06725932,0.00040118,5]
[314224367,1708097443322,-515.85435007,0.00040118,5]
[314224368,1708097443334,-3128.2846281,0.00040118,5]
[314224369,1708097443345,-774.99496113,0.00040118,5]
[314224370,1708097443356,-48407.21395754,0.00040118,5]
[314224371,1708097443368,-273.2421778,0.00040118,5]
[314224372,1708097443380,-3558.14155319,0.00040118,5]
[314224373,1708097443392,-3302.42566949,0.00040118,5]
[314224374,1708097443403,-5310.90201225,0.00040118,5]
[314224375,1708097443418,-2100.0,0.00040118,5]
[314224376,1708097443430,-1232.9642274,0.00040118,5]
[314224377,1708097443449,-502.55130745,0.00040118,5]
[314224380,1708097443460,-1801.28538,0.00040118,5]
[314224382,1708097443471,-3020.66396125,0.00040118,5]
[314224385,1708097443493,-920.59341765,0.00040118,5]
[314224386,1708097443507,-615.61679941,0.00040118,5]
[314224387,1708097443518,-4664.36901284,0.00040118,5]
[314224388,1708097443534,-440.41377552,0.00040118,5]
[314224389,1708097443545,-264.96451937,0.00040118,5]
[314224472,1708097448389,-537.42092009,0.00039959,2]
[314224474,1708097448398,-787.61805415,0.00040003,9]
[314224475,1708097448407,-1255.76102576,0.00040018,2]
[314224478,1708097448419,-1090.332122,0.00040018,2]
[314224480,1708097448430,-5190.77607975,0.00040018,2]
[314224494,1708097448551,-1788.09452269,0.00040018,2]
[314224496,1708097448561,-949.8054773,0.00040117,4]
[314224498,1708097448572,-223.17199133,0.00040117,4]
[314224500,1708097448581,-38376.82800867,0.00040118,5]
[314224513,1708097448703,-13921.775,0.00040118,5]
[314224515,1708097448715,-773.23999989,0.00040118,5]
[314224517,1708097448726,-583.87001,0.00040118,5]
[314224521,1708097448752,-505.11599333,0.00040118,5]
[314224523,1708097448764,-277.60999134,0.00040118,5]
[314224525,1708097448775,-1379.22499999,0.00040118,5]
[314224606,1708097458898,300.0,0.00025,2]
[314224607,1708097572000,889.28465135,0.00025,2]
[314224608,1708097590060,889.28465135,0.00025,2]
[314224609,1708097608155,889.28465135,0.00025,2]
[314224610,1708097967670,4871.78678835,0.00025,2]
[314224611,1708097983719,4871.78678835,0.00025,2]
[314224612,1708098001187,4871.78678835,0.00025,2]
[314224613,1708098021200,4871.78678835,0.00025,2]
[314224614,1708098039254,4871.78678835,0.00025,2]
[314224615,1708098055210,4871.78678835,0.00025,2]
[314224616,1708098077220,4871.78678835,0.00025,2]
[314224617,1708098091277,4871.78678835,0.00025,2]
[314224618,1708098111562,4871.78678835,0.00025,2]
[314224619,1708098133218,4871.78678835,0.00025,2]
[314224620,1708098149226,4679.00492253,0.00025,2]
[314224621,1708098159439,322.70394806,0.00024875,2]
[314224628,1708098537408,150.0,0.00024996,2]
[314224638,1708098632115,-159.81159687,0.00025884,2]
[314224639,1708098632125,-184.98362258,0.00025885,2]
[314224640,1708098632135,-763.90157645,0.00025984,2]
[314224641,1708098632144,-155.0,0.00026192,2]
[314224642,1708098632154,-155.0,0.00026394,2]
[314224643,1708098632163,-228.74225568,0.00026397,2]
[314224644,1708098632173,-177.38,0.00026397,2]
[314224645,1708098632183,-150.0,0.00026397,2]
[314224646,1708098632434,-177.38,0.00026945,2]
[314224647,1708098632444,-150.0,0.00026945,2]
[314224648,1708098632453,-2476.729798,0.00027259,2]
[314224649,1708098632471,-505.24709433,0.00027306,2]
[314224650,1708098632485,-150.99,0.00027396,2]
[314224651,1708098632499,-150.0,0.00027396,2]
[314224652,1708098632509,-300.0,0.00027396,2]
[314224653,1708098632519,-358.81067878,0.00027396,2]
[314224654,1708098632529,-130459.0,0.00027397,4]
[314224655,1708098632539,-174.71,0.00027406,2]
[314224656,1708098632549,-153.87025979,0.00027434,2]
[314224657,1708098632559,-177.38,0.00027493,2]
[314224658,1708098632569,-272.10084856,0.00027493,2]
[314224659,1708098632579,-177.38,0.00028041,2]
[314224660,1708098632590,-549.11,0.00028169,2]
[314224661,1708098632600,-153.87025974,0.0002819,2]
[314224662,1708098632609,-177.38,0.00028589,2]
[314224663,1708098632619,-153.87025974,0.00028947,2]
[314224664,1708098632629,-378.78,0.00029064,2]
[314224665,1708098632638,-1317.51,0.00029064,2]
[314224666,1708098632648,-250.0,0.0002913,2]
[314224667,1708098632658,-177.38,0.00029137,2]
[314224668,1708098632668,-250.0,0.00029155,2]
[314224669,1708098632678,-378.78,0.00029232,2]
[314224670,1708098632688,-150.0,0.00029246,2]
[314224671,1708098632697,-500.0,0.00029246,2]
[314224672,1708098632707,-378.78,0.000294,2]
[314224673,1708098632717,-228.59647435,0.000295,3]
[314224674,1708098632726,-378.78,0.00029568,2]
[314224675,1708098632736,-177.38,0.00029685,2]
[314224676,1708098632747,-153.87025974,0.00029703,2]
[314224677,1708098632757,-378.78,0.00029735,2]
[314224678,1708098632768,-378.78,0.00029903,2]
[314224679,1708098632778,-378.78,0.00030071,2]
[314224680,1708098632787,-23900.0,0.00030084,2]
[314224681,1708098632797,-500.0,0.00030118,2]
[314224682,1708098632807,-210.0,0.00030136,2]
[314224683,1708098632816,-5250.23,0.00030137,2]
[314224684,1708098632826,-177.38,0.00030233,2]
[314224685,1708098632836,-378.78,0.00030239,2]
[314224686,1708098632846,-378.78,0.00030407,2]
[314224687,1708098632856,-270.0,0.0003041,2]
[314224688,1708098632866,-549.11,0.00030433,2]
[314224689,1708098632876,-153.87025974,0.0003046,2]
[314224690,1708098632886,-378.78,0.00030575,2]
[314224691,1708098632896,-259.49464927,0.00030781,2]
[314224692,1708098632910,-4120.37,0.00030788,2]
[314224693,1708098632920,-2705.0,0.00030813,2]
[314224694,1708098632930,-444.28,0.00030995,2]
[314224695,1708098632940,-309.63,0.00030995,2]
[314224696,1708098632955,-505.24709432,0.00031,2]
[314224697,1708098632965,-2136.93,0.00031119,2]
[314224698,1708098632974,-200.0,0.00031126,2]
[314224699,1708098632984,-153.87025974,0.00031216,2]
[314224700,1708098632996,-165.79,0.000318,2]
[314224701,1708098633006,-153.87025974,0.00031972,2]
[314224702,1708098633016,-199.75,0.00032476,2]
[314224703,1708098633026,-750.0,0.00032682,2]
[314224704,1708098633036,-549.11,0.00032697,2]
[314224705,1708098633046,-153.87025974,0.00032729,2]
[314224706,1708098633056,-500.0,0.00032761,2]
[314224707,1708098633066,-2136.93,0.00032763,2]
[314224708,1708098633075,-151.0,0.00033131,2]
[314224709,1708098633085,-293.0,0.00033149,3]
[314224710,1708098633095,-153.87025974,0.00033485,2]
[314224711,1708098633105,-151.0,0.00033794,2]
[314224712,1708098633114,-1188.7278,0.00034147,2]
[314224713,1708098633124,-153.87025974,0.00034242,2]
[314224714,1708098633134,-200.0,0.00034257,2]
[314224715,1708098633143,-499.99,0.00034257,2]
[314224716,1708098633154,-764.87,0.00034257,2]
[314224717,1708098633164,-238.23,0.00034257,2]
[314224718,1708098633173,-250.0,0.00034257,111]
[314224719,1708098633182,-2000.0,0.00034257,2]
[314224720,1708098633192,-200.0,0.00034257,2]
[314224721,1708098633201,-800.0,0.00034257,2]
[314224722,1708098633210,-1094.54,0.00034257,2]
[314224723,1708098633220,-689.76,0.00034257,2]
[314224724,1708098633230,-2206.31,0.00034257,2]
[314224725,1708098633240,-597.86,0.00034257,2]
[314224726,1708098633252,-2136.93,0.00034407,2]
[314224727,1708098633262,-300.0,0.00034414,2]
[314224728,1708098633272,-5442.3273,0.00034414,2]
[314224729,1708098633282,-2500.0,0.00034414,2]
[314224730,1708098633291,-466.2909,0.0003442,2]
[314224731,1708098633300,-165.79,0.00034424,2]
[314224732,1708098633310,-597.86,0.00034437,2]
[314224733,1708098633319,-151.0,0.00034456,2]
[314224734,1708098633329,-730.7,0.00034514,2]
[314224735,1708098633338,-2538.45845,0.0003452,2]
[314224736,1708098633348,-639.881182,0.0003452,2]
[314224737,1708098633357,-1049.533306,0.0003452,2]
[314224738,1708098633367,-311.860297,0.0003452,2]
[314224739,1708098633377,-5612.956978,0.0003452,2]
[314224740,1708098633386,-5811.149399,0.0003452,2]
[314224741,1708098633395,-832.773794,0.0003452,2]
[314224742,1708098633406,-3761.3,0.00034521,2]
[314224743,1708098633415,-730.7,0.00034609,2]
[314224744,1708098633424,-597.86,0.00034618,2]
[314224745,1708098633434,-505.24709432,0.00034694,2]
[314224746,1708098633443,-730.7,0.00034703,2]
[314224747,1708098633453,-2667.03352894,0.00034789,7]
[314224748,1708098633462,-37683.2570273,0.0003479,2]
[314224749,1708098633472,-37683.25702724,0.0003479,2]
[314224750,1708098633482,-37683.25702724,0.0003479,2]
[314224751,1708098633492,-37683.25702724,0.0003479,2]
[314224752,1708098633503,-19166.73388974,0.00034793,4]
[314224753,1708098633513,-3807.687676,0.00034794,2]
[314224754,1708098633522,-959.821773,0.00034794,2]
[314224755,1708098633532,-1574.29996,0.00034794,2]